bitfinex/quotes_ETHUSD_20220123
["timestamp","ask_amount","ask_price","bid_price","bid_amount"]
[1642961803753,8.18326475,2436.0,2435.9,0.164]
[1642961805605,4.45,2435.9,2435.4,1.35975589]
[1642961806607,1.23326475,2436.0,2435.4,1.35975589]
[1642961807205,0.1642,2436.0,2435.4,1.35975589]
[1642961807810,0.03547766,2435.8,2435.4,1.35975589]
[1642961812898,0.19984676,2436.0,2435.4,1.35975589]
[1642961814299,0.03564676,2436.0,2435.4,1.35975589]
[1642961817853,0.02391479,2436.0,2435.4,1.35975589]
[1642961821993,1.04801247,2436.0,2435.4,1.35975589]
[1642961822199,0.1642,2435.9,2435.4,1.35975589]
[1642961822797,0.19973402,2435.9,2435.4,1.35975589]
[1642961822998,0.03553402,2435.9,2435.4,1.35975589]
[1642961823198,0.1642,2435.8,2435.2,3.637]
[1642961823847,0.98450077,2435.6,2435.2,3.637]
[1642961824051,0.02357869,2435.5,2434.5,0.593]
[1642961824259,1.5203723,2434.9,2434.2,1.5378433]
[1642961824449,1.5203723,2434.9,2434.2,1.46717699]
[1642961824450,0.3219357,2434.8,2434.2,1.46717699]
[1642961825249,0.1643,2434.8,2434.2,1.46717699]
[1642961826456,2.15091102,2434.8,2434.2,1.46717699]
[1642961826652,2.15005587,2434.8,2434.2,1.46717699]
[1642961826852,0.16344485,2434.8,2434.2,1.46717699]
[1642961827054,0.36873485,2434.8,2434.0,0.02]
[1642961827256,1.98073573,2434.7,2434.0,0.02]
[1642961827498,0.1643,2434.6,2434.0,0.02]
[1642961828093,0.1643,2434.6,2434.2,1.20634974]
[1642961831095,0.06806195,2434.3,2434.0,0.02]
[1642961831355,0.06806195,2434.3,2434.0,0.00599166]
[1642961831356,0.27335195,2434.3,2434.0,0.00599166]
[1642961831555,0.17710552,2434.2,2433.7,0.02]
[1642961831754,0.20529,2434.1,2433.7,0.02]
[1642961831953,0.1643,2434.0,2433.7,0.02]
[1642961832157,5.40529,2433.8,2433.7,0.02]
[1642961832554,0.20529,2433.8,2433.7,0.02]
[1642961832762,4.00529,2433.8,2433.7,0.01722317]
[1642961835197,6.95932239,2433.8,2433.7,0.01722317]
[1642961835600,6.95932239,2433.8,2432.9,0.02]
[1642961835601,1.07407452,2433.2,2432.9,0.02]
[1642961836003,0.01346661,2433.1,2432.9,0.02]
[1642961836198,1.3501864,2433.1,2432.9,0.02]
[1642961836501,1.33671979,2433.1,2432.9,0.02]
[1642961836697,6.8,2433.3,2432.6,0.01]
[1642961837704,8.8279748,2433.3,2432.6,0.01]
[1642961838010,0.02480127,2433.0,2432.6,0.01]
[1642961842903,1.34646038,2433.2,2432.6,0.01]
[1642961842904,1.37144998,2433.2,2432.6,0.01]
[1642961844706,3.33241715,2433.2,2432.6,0.01]
[1642961844907,3.33788729,2433.2,2432.6,0.01]
[1642961845111,1.37144998,2433.2,2432.6,0.01]
[1642961845310,0.00733749,2433.6,2432.7,4.1]
[1642961845512,0.00733749,2433.6,2432.8,0.593]
[1642961845709,0.00733749,2433.6,2432.9,0.593]
[1642961845912,0.00733749,2433.6,2433.0,0.593]
[1642961846109,0.00733749,2433.6,2432.7,4.8998]
[1642961846348,1.03771336,2433.6,2433.1,1.95426929]
[1642961846750,1.03771336,2433.6,2433.1,0.593]
[1642961846950,2.13052138,2433.5,2433.1,0.593]
[1642961847149,0.1643,2433.5,2433.1,0.593]
[1642961847756,2.15405512,2433.5,2433.1,0.593]
[1642961848153,1.4867089,2433.4,2433.1,0.593]
[1642961848356,0.1643,2433.3,2433.1,0.593]
[1642961850807,2.15524893,2433.3,2432.7,0.593]
[1642961851406,1.24858875,2433.0,2432.7,0.593]
[1642961851606,0.1643,2432.9,2432.7,0.593]
[1642961851806,0.1643,2433.2,2432.7,0.593]
[1642961852008,0.1643,2433.5,2432.7,0.593]
[1642961852206,1.12925126,2433.2,2432.7,0.593]
[1642961852406,0.1643,2433.1,2432.7,0.593]
[1642961853609,1.10792805,2433.1,2432.7,0.593]
[1642961854851,1.27222805,2433.1,2432.7,0.593]
[1642961855052,1.10792805,2433.1,2432.7,0.593]
[1642961856255,1.27222805,2433.1,2432.7,0.593]
[1642961856955,3.31286639,2433.1,2432.6,0.01]
[1642961857500,1.27222805,2433.1,2432.6,0.01]
[1642961858705,0.1643,2433.1,2432.6,0.01]
[1642961859110,0.1643,2433.2,2432.6,0.01]
[1642961859304,1.1739,2433.4,2432.7,0.593]
[1642961859516,0.00733749,2433.6,2432.8,2.29311286]
[1642961859707,0.00733749,2433.6,2432.9,1.69561791]
[1642961859907,0.00733749,2433.6,2433.0,0.593]
[1642961860110,0.1643,2433.5,2433.1,0.593]
[1642961860506,0.1643,2433.5,2433.1,0.543]
[1642961860706,0.1643,2433.5,2432.6,0.01]
[1642961860906,0.1643,2433.5,2432.8,0.593]
[1642961861253,0.1643,2433.5,2432.9,1.09814896]
[1642961862055,0.1643,2433.5,2433.0,0.593]
[1642961862955,0.03431152,2433.4,2433.0,0.593]
[1642961863760,0.03431152,2433.4,2433.3,1.11536064]
[1642961864864,0.03431152,2433.4,2433.3,4.65836064]
[1642961865104,0.03431152,2433.4,2433.3,5.25836064]
[1642961865303,0.03431152,2433.4,2433.3,6.25836064]
[1642961865504,0.03431152,2433.4,2433.3,3.30836064]
[1642961865706,0.03431152,2433.4,2433.3,1.70836064]
[1642961867909,0.04164901,2433.6,2433.3,1.70836064]
[1642961869153,0.04164901,2433.6,2433.4,2.30515645]
[1642961869364,0.04164901,2433.6,2433.5,0.593]
[1642961869558,0.04164901,2433.6,2433.5,0.58365284]
[1642961871162,0.20594901,2433.6,2433.5,0.58365284]
[1642961872536,3.14483565,2433.6,2432.9,3.8541]
[1642961872728,3.14483565,2433.6,2432.6,0.01]
[1642961872729,0.9985835,2433.0,2432.6,0.01]
[1642961873528,1.1628835,2433.0,2432.6,0.01]
[1642961875633,4.10177014,2433.0,2432.6,0.01]
[1642961877263,1.1628835,2433.0,2432.6,0.01]
[1642961877858,0.03402908,2432.9,2432.6,0.01]
[1642961878064,0.1643,2432.8,2432.6,0.01]
[1642961878259,0.9985835,2433.0,2432.6,0.01]
[1642961878260,3.86202974,2433.0,2432.6,0.01]
[1642961879161,0.9231431,2433.0,2432.6,0.01]
[1642961879360,2.93888664,2432.8,2432.6,0.00700623]
[1642961879563,8.25,2432.7,2432.6,0.00700623]
[1642961879768,12.32188319,2432.7,2432.6,0.00700623]
[1642961880019,12.32188319,2432.7,2432.6,0.00318962]
[1642961880212,14.16512885,2432.7,2432.6,0.00318962]
[1642961880407,9.95754566,2432.7,2432.6,0.00318962]
[1642961880806,10.25754566,2432.7,2432.6,0.00318962]
[1642961881011,10.25754566,2432.7,2432.6,0.00087118]
[1642961881909,10.25754566,2432.7,2432.6,7.118e-05]
[1642961882507,10.96071168,2432.7,2432.6,7.118e-05]
[1642961882710,34.93071168,2432.7,2432.6,7.118e-05]
[1642961882907,35.19931168,2432.7,2432.6,7.118e-05]
[1642961883308,35.49931168,2432.7,2432.6,7.118e-05]
[1642961884162,35.60073699,2432.7,2432.6,7.118e-05]
[1642961884763,9.06662236,2432.6,2432.1,0.02]
[1642961884972,31.88248876,2432.2,2432.1,0.02]
[1642961885269,38.08031169,2432.2,2432.1,0.02]
[1642961885562,1.1384164,2432.1,2431.2,0.02]
[1642961885763,2.9489321,2431.7,2431.2,0.02]
[1642961885963,11.95049807,2431.6,2431.2,0.02]
[1642961886162,9.00156597,2431.6,2431.2,0.02]
[1642961886764,10.1061573,2431.6,2431.2,0.02]
[1642961886963,11.4061573,2431.6,2431.2,0.02]
[1642961887165,12.8227573,2431.6,2431.2,0.02]
[1642961887365,16.94313968,2431.6,2431.2,0.02]
[1642961887614,13.99785959,2431.6,2431.2,0.02]
[1642961888011,2.22119133,2431.6,2431.2,0.02]
[1642961888213,2.94528009,2431.9,2431.2,0.02]
[1642961888414,3.10978009,2432.0,2431.2,0.02]
[1642961888612,2.94528009,2432.0,2431.2,0.02]
[1642961889013,5.11840947,2432.2,2431.2,0.613]
[1642961889014,2.94528009,2432.1,2431.2,0.613]
[1642961889210,6.55981435,2432.2,2431.2,0.613]
[1642961889412,2.94528009,2432.1,2431.2,0.613]
[1642961890412,6.55981435,2432.2,2431.4,1.20506099]
[1642961890614,5.37331435,2432.2,2431.4,1.20506099]
[1642961891457,1.03544124,2431.8,2431.2,0.02]
[1642961891657,7.1,2431.7,2431.5,0.00976813]
[1642961892865,2.94528009,2432.0,2431.5,0.00976813]
[1642961893266,2.3722,2432.1,2431.5,0.00976813]
[1642961893267,2.94528009,2432.1,2431.5,0.00976813]
[1642961893464,0.1643,2432.4,2431.6,1.93468556]
[1642961893465,3.10958009,2432.4,2431.6,1.93468556]
[1642961893661,4.10248009,2432.5,2431.6,1.93468556]
[1642961893862,2.94528009,2432.4,2431.6,1.93468556]
[1642961894064,4.10248009,2432.5,2431.6,1.93468556]
[1642961894562,4.10248009,2432.5,2432.0,1.11844337]
[1642961894763,0.1643,2432.6,2431.6,1.43455809]
[1642961894764,2.94528009,2432.4,2431.6,0.593]
[1642961895816,2.94528009,2432.4,2431.8,1.11555947]
[1642961896018,3.98393105,2432.4,2431.8,1.11555947]
[1642961896220,5.44013684,2432.6,2431.9,2.03544942]
[1642961896221,3.901037,2432.6,2431.9,2.03544942]
[1642961896423,3.901037,2433.1,2432.3,0.01274876]
[1642961896623,3.901037,2433.1,2432.4,8.1805229]
[1642961896820,3.901037,2433.1,2432.7,7.41]
[1642961897021,0.00733749,2433.6,2432.8,0.76109513]
[1642961897220,0.00733749,2433.6,2432.9,3.8164]
[1642961897420,0.17163749,2433.6,2433.0,0.593]
[1642961897620,0.00733749,2433.6,2433.1,0.593]
[1642961898025,3.90837449,2433.6,2433.1,0.593]
[1642961898421,0.00733749,2433.6,2433.1,0.593]
[1642961898620,0.17163749,2433.6,2433.1,0.593]
[1642961898854,0.17163749,2433.6,2432.8,0.593]
[1642961898855,1.20758885,2433.3,2432.8,0.593]
[1642961899057,1.20758885,2433.3,2432.6,0.1643]
[1642961899058,0.1643,2433.2,2432.6,0.1643]
[1642961899256,4.065337,2433.2,2432.6,0.1643]
[1642961899453,30.36416218,2433.2,2432.6,0.1643]
[1642961899654,5.53140715,2433.1,2432.6,0.1643]
[1642961899854,1.37631371,2432.8,2432.6,0.1643]
[1642961900058,8.0643,2432.7,2432.6,0.1643]
[1642961901658,7.9,2432.6,2431.8,7.8189]
[1642961901859,0.27653489,2432.5,2431.8,7.8189]
[1642961902062,0.27653489,2432.5,2431.4,4.2847]
[1642961902063,0.90690504,2432.5,2431.4,1.1527]
[1642961902368,23.97,2432.4,2431.2,0.02]
[1642961902614,1.27357099,2432.0,2431.4,1.43568725]
[1642961902810,0.1643,2431.9,2431.2,0.02]
[1642961904012,0.1643,2431.9,2431.2,1.54815546]
[1642961904414,0.1643,2431.9,2431.2,0.02]
[1642961904615,0.01276698,2431.7,2431.5,6.813e-05]
[1642961904815,8.0645,2431.6,2431.5,6.813e-05]
[1642961905111,8.3645,2431.6,2431.5,6.813e-05]
[1642961905311,33.3345,2431.6,2431.5,6.813e-05]
[1642961905614,33.96487015,2431.6,2431.5,6.813e-05]
[1642961905815,36.49180936,2431.6,2431.5,6.813e-05]
[1642961906251,37.92783904,2431.6,2431.5,6.813e-05]
[1642961906454,38.01469085,2431.6,2431.5,6.813e-05]
[1642961906651,1.06906146,2431.0,2430.8,0.02]
[1642961906856,8.0645,2430.9,2430.8,0.02]
[1642961907053,9.0645,2430.9,2430.8,0.02]
[1642961907255,10.42812161,2430.9,2430.8,0.02]
[1642961908467,2.52812161,2430.9,2430.8,0.02]
[1642961908661,0.1645,2430.9,2430.8,0.02]
[1642961908859,0.6723,2431.0,2430.8,0.02]
[1642961909063,0.3952,2431.0,2430.8,0.02]
[1642961909661,0.3952,2431.0,2430.8,0.01535968]
[1642961911212,0.3952,2431.0,2430.9,0.593]
[1642961912416,0.3952,2431.0,2430.8,0.01535968]
[1642961913415,9.00449177,2430.9,2430.8,0.01535968]
[1642961913626,10.23696662,2430.9,2430.8,0.01535968]
[1642961913870,10.23696662,2430.9,2430.6,0.02]
[1642961913871,6.75745512,2430.7,2430.6,0.02]
[1642961914068,6.92195512,2430.7,2430.6,0.02]
[1642961914365,8.00875512,2430.7,2430.6,0.02]
[1642961914772,1.25875512,2430.7,2430.6,0.02]
[1642961915166,5.55875512,2430.7,2430.6,0.02]
[1642961915368,7.64765389,2430.7,2430.6,0.02]
[1642961915567,7.48315389,2430.7,2430.6,0.02]
[1642961915973,7.48315389,2430.7,2430.6,0.0001]
[1642961916468,0.82803089,2430.5,2430.0,0.9989]
[1642961916671,0.82803089,2430.5,2430.0,0.0001]
[1642961916672,9.03615295,2430.1,2430.0,0.0001]
[1642961916976,9.03615295,2430.1,2429.2,0.023794]
[1642961916977,7.9,2430.0,2429.2,0.023794]
[1642961917173,0.1645,2429.9,2429.2,0.023794]
[1642961917605,2.20607144,2429.9,2429.2,0.023794]
[1642961917810,1.03880436,2429.4,2429.2,0.023794]
[1642961918208,7.57820074,2429.3,2429.2,0.023794]
[1642961918406,8.65670074,2429.3,2429.2,0.023794]
[1642961918608,2.85670074,2429.3,2429.2,0.023794]
[1642961918824,4.15670074,2429.3,2429.2,0.023794]
[1642961919208,36.02670074,2429.3,2429.2,0.023794]
[1642961919408,36.91097516,2429.3,2429.2,9.4e-05]
[1642961920013,1.16457377,2428.7,2428.3,0.02]
[1642961920211,2.04157144,2429.1,2428.3,0.02]
[1642961920414,2.50617144,2429.1,2428.3,0.02]
[1642961920609,1.0,2429.0,2428.3,0.02]
[1642961920815,2.20627144,2428.9,2428.3,0.02]
[1642961921020,0.01248245,2428.7,2427.2,0.00158429]
[1642961921265,0.1647,2428.6,2427.2,0.00158429]
[1642961921460,0.1647,2428.6,2427.1,0.49458429]
[1642961922063,0.1647,2428.6,2428.3,1.17944519]
[1642961922365,2.04157144,2429.1,2428.0,0.593]
[1642961922562,0.1647,2429.0,2428.0,0.593]
[1642961923164,2.04157144,2429.1,2428.0,0.593]
[1642961923165,0.1647,2429.1,2428.0,0.593]
[1642961923361,0.07140258,2429.2,2428.1,1.18280317]
[1642961923562,0.07140258,2429.2,2429.1,1.36039713]
[1642961923764,0.13819997,2429.4,2429.1,1.36039713]
[1642961924163,2.00885367,2429.7,2429.1,1.36039713]
[1642961924164,0.1645,2429.7,2429.1,1.36039713]
[1642961924362,2.41897563,2430.2,2429.1,1.36039713]
[1642961924363,0.1645,2430.2,2429.1,1.36039713]
[1642961924561,0.1645,2430.4,2429.1,1.36039713]
[1642961925008,1.06137602,2430.2,2429.1,1.36039713]
[1642961925308,1.06137602,2430.2,2428.5,6.00628136]
[1642961925309,0.1645,2430.1,2429.5,1.28853725]
[1642961925506,0.1645,2430.1,2429.5,0.95125049]
[1642961927718,0.84873233,2430.0,2429.5,0.95125049]
[1642961927916,0.1645,2429.9,2428.8,0.495]
[1642961928956,0.1645,2429.9,2429.4,1.20843416]
[1642961929560,0.1645,2430.2,2429.4,1.70343416]
[1642961929957,0.1645,2430.4,2429.4,1.70343416]
[1642961930158,0.1645,2430.4,2429.0,1.0]
[1642961930372,0.86704859,2430.4,2428.9,0.06679739]
[1642961930563,0.86331761,2430.4,2428.9,0.06679739]
[1642961930764,0.1645,2430.4,2428.9,0.06679739]
[1642961930964,0.86331761,2430.4,2428.9,0.06679739]
[1642961931167,0.95730186,2429.8,2429.3,1.30603507]
[1642961931366,0.1645,2429.7,2429.3,1.30603507]
[1642961933111,0.1645,2430.1,2429.3,1.30603507]
[1642961933516,0.85245188,2430.2,2429.3,1.30603507]
[1642961933712,0.1645,2430.1,2429.3,1.30603507]
[1642961934111,1.1645,2430.1,2429.3,1.30603507]
[1642961934314,0.1645,2430.1,2429.3,1.30603507]
[1642961934515,1.1645,2430.1,2429.3,1.30603507]
[1642961934710,0.1645,2430.1,2429.3,1.30603507]
[1642961934914,1.1645,2430.1,2429.3,1.30603507]
[1642961935117,1.1645,2430.1,2428.6,6.22515053]
[1642961935118,25.40202792,2429.8,2428.6,3.8319]
[1642961935317,0.1645,2429.7,2428.5,7.43]
[1642961935522,1.1645,2429.7,2428.0,2.0345353]
[1642961935719,1.1645,2429.7,2427.9,9.8341353]
[1642961936020,1.33265123,2428.9,2428.3,1.29513402]
[1642961936254,0.1647,2428.8,2428.3,1.29513402]
[1642961936860,0.1647,2429.0,2428.3,1.29513402]
[1642961937058,0.4647,2429.0,2428.3,1.29513402]
[1642961937356,24.4347,2429.0,2427.6,3.74970818]
[1642961937564,1.0,2428.9,2427.6,3.737]
[1642961937762,0.1647,2428.8,2427.6,3.737]
[1642961937964,1.17,2429.7,2427.6,3.737]
[1642961937965,0.1647,2429.0,2427.7,2.76455233]
[1642961938167,2.17,2429.7,2427.7,2.96983233]
[1642961938168,0.1645,2429.6,2427.7,2.96983233]
[1642961938466,0.1645,2429.6,2429.4,1.07051185]
[1642961938862,0.1645,2429.6,2429.4,0.48635576]
[1642961939369,0.1645,2429.9,2428.6,3.6875]
[1642961940410,0.1645,2429.9,2429.4,1.27488734]
[1642961940810,0.1645,2429.9,2429.4,0.87834076]
[1642961942513,1.26344242,2429.9,2429.4,0.87834076]
[1642961942716,0.1645,2429.9,2429.4,0.87834076]
[1642961943750,0.1645,2429.9,2429.8,1.31136813]
[1642961943956,3.2145,2429.9,2429.8,1.31136813]
[1642961944152,0.1645,2429.9,2429.8,1.31136813]
[1642961944352,0.1645,2430.2,2429.8,1.31136813]
[1642961944561,0.00745512,2430.7,2429.8,1.31136813]
[1642961944759,0.00745512,2430.7,2430.5,1.30829623]
[1642961945157,0.1645,2430.8,2430.5,1.30829623]
[1642961945158,0.02195512,2430.8,2430.5,1.30829623]
[1642961945357,0.1645,2431.1,2430.5,1.30829623]
[1642961945557,2.88989309,2431.1,2430.5,1.30829623]
[1642961945759,0.1645,2431.0,2430.5,1.30829623]
[1642961946157,1.37423045,2431.1,2430.5,1.30829623]
[1642961946357,4.26412354,2431.1,2430.5,1.30829623]
[1642961946957,3.05439309,2431.1,2430.5,1.30829623]
[1642961947514,0.1645,2431.1,2430.5,1.30829623]
[1642961947906,1.1645,2431.1,2430.5,1.30829623]
[1642961948109,4.05439309,2431.1,2430.5,1.30829623]
[1642961948307,4.92964406,2431.0,2430.5,1.30829623]
[1642961948514,3.05439309,2430.9,2430.5,1.30829623]
[1642961948709,3.05439309,2430.9,2429.7,6.8822]
[1642961948908,3.05439309,2430.9,2429.6,0.495]
[1642961948909,2.02909116,2430.8,2429.6,0.495]
[1642961949111,0.1645,2430.7,2429.6,0.495]
[1642961949513,3.05439309,2430.7,2429.6,0.495]
[1642961949713,4.53953454,2430.7,2430.1,1.52039176]
[1642961949908,3.05439309,2430.7,2430.1,1.52039176]
[1642961950312,3.05439309,2430.7,2430.1,1.42039176]
[1642961950518,3.05439309,2430.7,2430.1,0.65507735]
[1642961950717,0.1645,2430.7,2430.1,0.65507735]
[1642961950915,1.65391004,2430.7,2430.1,0.65507735]
[1642961951355,2.01612998,2430.6,2430.1,0.65507735]
[1642961951556,0.1645,2430.5,2430.1,0.65507735]
[1642961951956,4.8635515,2430.6,2430.1,0.65507735]
[1642961952159,0.1645,2430.5,2430.1,0.65507735]
[1642961953058,3.05439309,2430.5,2430.1,0.65507735]
[1642961953257,3.05439309,2430.5,2429.6,0.495]
[1642961953663,0.0120589,2430.9,2429.7,2.0215839]
[1642961953664,0.1645,2430.6,2429.7,2.0215839]
[1642961953865,2.88989309,2430.9,2429.6,0.495]
[1642961953866,10.31989309,2430.9,2429.8,0.6595]
[1642961954061,7.43,2430.9,2429.9,0.495]
[1642961954359,2.88989309,2431.2,2430.0,0.1645]
[1642961954661,2.88989309,2431.3,2430.9,1.25952369]
[1642961954865,3.05439309,2431.4,2430.9,1.25952369]
[1642961955510,3.09949564,2431.5,2430.9,1.25952369]
[1642961955711,2.88989309,2431.5,2430.9,1.25952369]
[1642961955914,0.1645,2431.6,2431.3,0.77113485]
[1642961957014,0.1645,2431.7,2431.3,0.77113485]
[1642961957416,0.1645,2431.7,2431.1,0.495]
[1642961957611,2.88989309,2431.6,2431.1,0.495]
[1642961957811,0.19746777,2431.5,2431.1,0.495]
[1642961958012,3.08736086,2431.5,2431.1,0.495]
[1642961958215,2.92286086,2431.5,2431.1,0.495]
[1642961958415,8.74577065,2431.2,2430.8,3.7195]
[1642961958614,8.74577065,2431.2,2430.2,12.3257]
[1642961958615,2.88989309,2431.0,2430.2,10.9145]
[1642961958856,2.88989309,2431.0,2430.1,0.495]
[1642961958857,0.1645,2430.9,2430.1,0.495]
[1642961959255,2.88989309,2431.1,2430.2,2.30820391]
[1642961959256,0.1645,2431.1,2430.2,2.30820391]
[1642961959455,0.1645,2431.1,2430.3,0.495]
[1642961959655,3.05439309,2431.3,2430.3,0.495]
[1642961959857,3.05439309,2431.4,2430.3,0.495]
[1642961960060,0.1645,2431.4,2430.3,0.795]
[1642961960455,0.1645,2431.4,2430.3,1.095]
[1642961960656,0.1645,2431.4,2430.4,1.18979613]
[1642961960858,0.19746777,2431.5,2431.3,1.11720703]
[1642961961060,0.03296777,2431.5,2431.3,0.54701554]
[1642961961257,6.6145,2431.4,2431.0,0.495]
[1642961961858,0.1645,2431.4,2431.0,0.495]
[1642961962258,0.1645,2431.4,2431.1,1.34560041]
[1642961962735,0.1645,2431.4,2431.1,1.64560041]
[1642961962928,0.03285462,2431.3,2431.1,1.94560041]
[1642961963127,0.03285462,2431.3,2431.1,1.34560041]
[1642961963328,0.03285462,2431.3,2431.0,0.495]
[1642961963928,0.1645,2431.2,2431.0,0.495]
[1642961965826,0.1645,2431.2,2431.0,0.445]
[1642961966872,0.1645,2431.2,2428.6,4.20697767]
[1642961966873,7.9,2431.0,2428.6,4.20697767]
[1642961967069,0.01277511,2429.8,2428.1,1.44199077]
[1642961967271,0.01226132,2429.6,2428.1,1.44199077]
[1642961967470,2.88989309,2429.4,2428.0,0.02]
[1642961967685,1.9360383,2429.0,2428.0,0.02]
[1642961967866,3.65287083,2428.9,2428.5,0.02]
[1642961968071,2.0123842,2428.8,2428.5,0.02]
[1642961968264,1.232,2428.6,2428.5,0.02]
[1642961968669,0.1647,2429.1,2428.5,4.42]
[1642961968670,1.232,2429.1,2428.5,4.42]
[1642961968866,3.91146651,2429.6,2428.5,4.42]
[1642961968867,1.232,2429.5,2428.6,32.07626]
[1642961969066,5.05299239,2430.2,2428.6,32.07626]
[1642961969067,2.88989309,2430.0,2428.8,23.97]
[1642961969271,2.88989309,2430.2,2428.9,1.13279]
[1642961969467,5.01187239,2430.7,2428.9,3.92026]
[1642961969468,2.88989309,2430.1,2428.9,3.92026]
[1642961969665,2.88989309,2430.1,2428.7,2.0123842]
[1642961969869,4.04239791,2430.3,2427.9,2.05956]
[1642961969870,0.0120404,2428.9,2427.9,0.63046]
[1642961970112,0.0120404,2428.9,2427.0,3.1065343]
[1642961970113,3.05459309,2429.2,2428.2,7.72851221]
[1642961970308,2.88989309,2429.0,2427.7,2.4033]
[1642961970505,2.1770842,2428.9,2427.7,2.4033]
[1642961970714,2.90269675,2429.4,2427.8,25.37523486]
[1642961970911,1.43979309,2429.4,2427.8,25.90925043]
[1642961971108,2.0123842,2429.7,2428.0,23.97]
[1642961971317,2.0123842,2429.7,2428.1,0.495]
[1642961971506,0.1645,2429.6,2428.2,0.495]
[1642961971706,0.20562,2429.5,2428.2,0.495]
[1642961971916,2.1768842,2429.4,2428.8,1.36712477]
[1642961972114,0.2166954,2428.3,2427.8,8.4469]
[1642961972311,0.2166954,2428.3,2427.8,3.6113]
[1642961972512,0.2166954,2428.3,2427.9,1.0]
[1642961972710,0.2166954,2428.3,2427.9,24.97]
[1642961973013,0.2166954,2428.3,2428.0,0.3]
[1642961973317,0.2166954,2428.3,2427.7,0.0707014]
[1642961973511,0.2166954,2428.3,2427.6,0.02]
[1642961973963,0.1647,2428.2,2427.6,0.02]
[1642961974166,0.2166954,2428.3,2427.6,0.02]
[1642961974766,0.1647,2428.9,2427.7,8.395]
[1642961974973,0.27639994,2429.8,2427.8,25.27]
[1642961974974,0.1647,2429.1,2427.8,25.27]
[1642961975171,4.08351791,2429.6,2428.6,1.4983888]
[1642961975369,0.1647,2429.0,2428.6,1.4983888]
[1642961975566,0.1645,2429.3,2428.6,2.0983888]
[1642961975769,0.1645,2429.3,2428.6,1.4983888]
[1642961975973,0.1645,2429.3,2428.0,6.2964]
[1642961976173,0.20562,2429.2,2428.0,2.462]
[1642961976474,0.1647,2429.1,2428.0,2.462]
[1642961976770,0.1647,2429.1,2427.9,7.81]
[1642961976968,0.1647,2429.1,2428.3,1.18190766]
[1642961978206,0.1647,2429.1,2428.3,1.78190766]
[1642961978811,4.2580584,2429.2,2428.3,1.78190766]
[1642961979009,2.236458,2429.1,2428.3,1.18190766]
[1642961979209,0.1645,2429.0,2428.0,1.0]
[1642961979413,0.1645,2429.0,2428.0,1.6]
[1642961980411,0.1647,2429.1,2428.2,1.3241774]
[1642961980614,2.36959458,2429.1,2428.2,0.3]
[1642961980814,3.39406286,2429.1,2428.2,0.3]
[1642961981011,3.39406286,2429.1,2428.0,1.6]
[1642961981288,2.36959458,2429.1,2428.0,1.6]
[1642961981473,0.1647,2429.1,2428.0,1.6]
[1642961981873,0.1647,2429.1,2428.0,2.095]
[1642961982076,1.94108822,2429.4,2428.0,2.095]
[1642961982077,0.1647,2429.3,2428.0,2.095]
[1642961982479,0.1647,2429.3,2428.7,1.41801809]
[1642961983280,0.1647,2429.3,2428.7,1.71801809]
[1642961983479,0.1647,2429.3,2428.7,2.01801809]
[1642961983786,2.4107248,2429.8,2428.7,2.01801809]
[1642961983787,0.1645,2429.7,2428.7,2.01801809]
[1642961983985,2.89333984,2430.1,2428.9,23.97]
[1642961984187,0.01281549,2430.2,2430.0,1.15651767]
[1642961984384,0.73609529,2429.7,2429.1,10.8385]
[1642961984582,0.73609529,2429.7,2429.2,1.795]
[1642961985004,0.68609529,2429.7,2429.2,1.095]
[1642961985809,0.68609529,2429.7,2429.3,1.3528051]
[1642961986418,0.68609529,2429.7,2428.9,1.3]
[1642961986609,0.68609529,2429.7,2428.5,7.1193]
[1642961986810,0.68609529,2429.7,2428.2,0.495]
[1642961986811,1.08008725,2429.5,2428.2,0.495]
[1642961987010,0.17700676,2429.4,2427.9,4.8108]
[1642961987208,0.17700676,2429.4,2428.0,9.42809458]
[1642961987406,0.17700676,2429.4,2428.7,1.12355068]
[1642961987611,0.17700676,2429.4,2428.7,0.61292265]
[1642961988859,0.17700676,2429.4,2428.7,0.91292265]
[1642961989064,0.17700676,2429.4,2428.7,1.21292265]
[1642961991260,0.17700676,2429.4,2428.7,0.61292265]
[1642961991465,0.00722712,2429.3,2428.1,1.0]
[1642961991669,0.1645,2429.2,2428.3,1.7928]
[1642961991863,0.1645,2429.3,2428.3,0.6]
[1642961992060,0.1645,2429.3,2428.1,1.0]
[1642961992061,0.1645,2429.3,2428.1,1.3]
[1642961992261,0.1645,2429.3,2428.1,1.6]
[1642961992503,0.1645,2429.3,2428.4,1.1173258]
[1642961992708,0.1645,2429.3,2428.8,1.13557861]
[1642961993305,0.1645,2429.3,2428.1,2.7709]
[1642961994407,0.1645,2429.3,2428.4,1.54592334]
[1642961994707,0.1645,2429.3,2428.4,2.14592334]
[1642961994909,0.1645,2429.3,2428.8,1.34445476]
[1642961997063,0.1645,2429.4,2428.9,0.3]
[1642961998360,1.1156125,2429.1,2428.1,2.1709]
[1642961998562,1.1156125,2429.1,2428.1,2.7709]
[1642961998762,1.1156125,2429.1,2428.0,7.2232]
[1642961998962,0.1647,2429.0,2428.0,7.2232]
[1642961999466,0.01296625,2428.9,2428.0,7.2232]
[1642961999662,0.1647,2428.8,2428.0,7.2232]
[1642961999862,1.6473125,2429.1,2428.0,7.2232]
[1642961999863,0.1647,2429.0,2428.0,7.2232]
[1642962000134,0.1647,2429.0,2428.1,1.0]
[1642962000933,0.1647,2429.2,2428.1,1.0]
[1642962001734,0.1647,2429.2,2428.5,1.32193796]
[1642962002139,0.1647,2429.2,2428.5,1.62193796]
[1642962002738,0.37032,2429.2,2428.1,1.3]
[1642962003340,0.37032,2429.2,2428.1,0.3]
[1642962003540,0.37032,2429.2,2428.0,8.7213]
[1642962004769,2.28994663,2429.2,2428.0,8.7213]
[1642962004963,0.37032,2429.2,2428.0,8.7213]
[1642962005362,0.37032,2429.2,2428.1,1.3]
[1642962005562,0.37032,2429.2,2428.3,1.31771967]